fUST/lending_fUST_20250903
["ID","MTS","AMOUNT","RATE_DAILY","PERIOD"]
[383247431,1756891845580,-480.0,0.00014246,2]
[383247433,1756891845589,-480.0,0.00014246,2]
[383247435,1756891845599,-193.36937178,0.00014246,2]
[383247437,1756891845608,-480.0,0.00014246,2]
[383247439,1756891845617,-480.0,0.00014246,2]
[383247441,1756891845627,-480.0,0.00014246,2]
[383247443,1756891845635,-480.0,0.00014246,2]
[383247445,1756891845645,-217.4,0.00014246,2]
[383247447,1756891845655,-480.0,0.00014246,2]
[383247449,1756891845664,-556.23011801,0.00014246,2]
[383247451,1756891845674,-480.0,0.00014246,2]
[383247453,1756891845683,-480.0,0.00014246,2]
[383247455,1756891845692,-480.0,0.00014246,2]
[383247457,1756891845701,-270.59,0.00014246,2]
[383247459,1756891845711,-480.0,0.00014246,2]
[383247461,1756891845720,-480.0,0.00014246,2]
[383247463,1756891845729,-480.0,0.00014246,2]
[383247465,1756891845739,-470.35,0.00014246,2]
[383247467,1756891845748,-480.0,0.00014246,2]
[383247469,1756891845758,-540.26,0.00014246,2]
[383247471,1756891845767,-480.0,0.00014246,2]
[383247473,1756891845777,-480.0,0.00014246,2]
[383247475,1756891845786,-480.0,0.00014246,2]
[383247477,1756891845795,-480.0,0.00014246,2]
[383247479,1756891845804,-151.0,0.00014246,2]
[383247481,1756891845814,-480.0,0.00014246,2]
[383247483,1756891845823,-241.0,0.00014246,2]
[383247485,1756891845832,-2124.57,0.00014246,2]
[383247487,1756891845842,-949.74,0.00014246,2]
[383247489,1756891845852,-819.44,0.00014246,2]
[383247491,1756891845862,-192.52660356,0.00014246,2]
[383247493,1756891845872,-185.3,0.00014246,2]
[383247495,1756891845881,-480.0,0.00014246,2]
[383247497,1756891845891,-663.35,0.00014246,2]
[383247499,1756891845900,-480.0,0.00014246,2]
[383247501,1756891845909,-480.0,0.00014246,2]
[383247503,1756891845919,-480.0,0.00014246,2]
[383247505,1756891845930,-480.0,0.00014246,2]
[383247507,1756891845940,-480.0,0.00014246,2]
[383247509,1756891845949,-480.0,0.00014246,2]
[383247511,1756891845958,-480.0,0.00014246,2]
[383247513,1756891845968,-480.0,0.00014246,2]
[383247515,1756891845977,-673.22,0.00014246,2]
[383247517,1756891845986,-480.0,0.00014246,2]
[383247520,1756891845996,-480.0,0.00014246,2]
[383247522,1756891846007,-480.0,0.00014246,2]
[383247524,1756891846016,-480.0,0.00014246,2]
[383247526,1756891846025,-563.01,0.00014246,2]
[383247528,1756891846035,-480.0,0.00014246,2]
[383247530,1756891846044,-1218.5,0.00014246,2]
[383247532,1756891846054,-480.0,0.00014246,2]
[383247534,1756891846063,-480.0,0.00014246,2]
[383247536,1756891846072,-480.0,0.00014246,2]
[383247538,1756891846081,-480.0,0.00014246,2]
[383247540,1756891846090,-480.0,0.00014246,2]
[383247542,1756891846099,-480.0,0.00014246,2]
[383247544,1756891846109,-480.0,0.00014246,2]
[383247546,1756891846118,-480.0,0.00014246,2]
[383247548,1756891846127,-480.0,0.00014246,2]
[383247550,1756891846136,-1015.2,0.00014246,2]
[383247552,1756891846146,-275.67520968,0.00014246,2]
[383247554,1756891846155,-480.0,0.00014246,2]
[383247558,1756891846168,-480.0,0.00014246,2]
[383247559,1756891846178,-271.37990241,0.00014246,2]
[383247561,1756891846187,-345.22,0.00014246,2]
[383247564,1756891846197,-496.73,0.00014246,2]
[383247566,1756891846208,-480.0,0.00014246,2]
[383247568,1756891846217,-480.0,0.00014246,2]
[383247569,1756891846228,-1899.23,0.00014246,2]
[383247571,1756891846237,-480.0,0.00014246,2]
[383247573,1756891846248,-592.66,0.00014246,2]
[383247575,1756891846257,-480.0,0.00014246,2]
[383247577,1756891846267,-480.0,0.00014246,2]
[383247579,1756891846275,-480.0,0.00014246,2]
[383247581,1756891846284,-480.0,0.00014246,2]
[383247583,1756891846294,-480.0,0.00014246,2]
[383247585,1756891846304,-480.0,0.00014246,2]
[383247587,1756891846313,-676.22,0.00014246,2]
[383247589,1756891846323,-480.0,0.00014246,2]
[383247591,1756891846332,-480.0,0.00014246,2]
[383247593,1756891846342,-1046.04,0.00014246,2]
[383247595,1756891846351,-480.0,0.00014246,2]
[383247597,1756891846361,-480.0,0.00014246,2]
[383247599,1756891846371,-480.0,0.00014246,2]
[383247601,1756891846380,-493.8177324,0.00014246,2]
[383247603,1756891846389,-480.0,0.00014246,2]
[383247605,1756891846398,-480.0,0.00014246,2]
[383247607,1756891846408,-480.0,0.00014246,2]
[383247609,1756891846417,-480.0,0.00014246,2]
[383247611,1756891846427,-480.0,0.00014246,2]
[383247613,1756891846436,-1476.8,0.00014246,2]
[383247615,1756891846446,-156.89,0.00014246,2]
[383247617,1756891846455,-480.0,0.00014246,2]
[383247619,1756891846465,-480.0,0.00014246,2]
[383247621,1756891846474,-480.0,0.00014246,2]
[383247623,1756891846483,-164.14,0.00014246,2]
[383247625,1756891846493,-480.0,0.00014246,2]
[383247627,1756891846502,-275.88415978,0.00014246,2]
[383247629,1756891846513,-1010.27,0.00014246,2]
[383247631,1756891846523,-508.28,0.00014246,2]
[383247633,1756891846532,-480.0,0.00014246,2]
[383247635,1756891846542,-480.0,0.00014246,2]
[383247637,1756891846552,-655.25,0.00014246,2]
[383247639,1756891846562,-480.0,0.00014246,2]
[383247641,1756891846571,-480.0,0.00014246,2]
[383247643,1756891846581,-480.0,0.00014246,2]
[383247645,1756891846591,-1960.54,0.00014246,2]
[383247647,1756891846601,-480.0,0.00014246,2]
[383247649,1756891846611,-480.0,0.00014246,2]
[383247651,1756891846628,-480.0,0.00014246,2]
[383247653,1756891846637,-168.0,0.00014262,2]
[383247655,1756891846647,-500.0,0.00014273,2]
[383247657,1756891846657,-492.65795747,0.00014273,2]
[383247659,1756891846666,-404.11218575,0.00014273,2]
[383247661,1756891846676,-500.0,0.00014273,2]
[383247663,1756891846685,-500.0,0.00014273,2]
[383247665,1756891846694,-500.0,0.00014273,2]
[383247667,1756891846703,-500.0,0.00014273,2]
[383247669,1756891846713,-500.0,0.00014273,2]
[383247671,1756891846724,-297.86985904,0.00014273,2]
[383247673,1756891846736,-500.0,0.00014273,2]
[383247675,1756891846744,-500.0,0.00014273,2]
[383247677,1756891846754,-500.95588904,0.00014273,2]
[383247679,1756891846763,-620.5471961,0.00014273,2]
[383247681,1756891846772,-500.54207938,0.00014273,2]
[383247683,1756891846781,-501.18878893,0.00014273,2]
[383247685,1756891846790,-500.0,0.00014273,2]
[383247687,1756891846799,-349.91330975,0.00014273,2]
[383247689,1756891846808,-1817.0,0.00014276,2]
[383247691,1756891846818,-6367.90625775,0.00014298,2]
[383247693,1756891846828,-103214.44830056,0.000143,2]
[383247695,1756891846837,-300.0,0.00014408,2]
[383247697,1756891846846,-300.0,0.00014408,2]
[383247699,1756891846855,-300.0,0.00014408,2]
[383247701,1756891846865,-300.0,0.00014408,2]
[383247703,1756891846878,-300.0,0.00014408,2]
[383247705,1756891846888,-300.0,0.00014408,2]
[383247706,1756891846899,-300.0,0.00014408,2]
[383247708,1756891846908,-300.0,0.00014408,2]
[383247711,1756891846920,-300.0,0.00014408,2]
[383247712,1756891846931,-300.0,0.00014408,2]
[383247715,1756891846942,-300.0,0.00014408,2]
[383247716,1756891846953,-300.0,0.00014408,2]
[383247718,1756891846963,-300.0,0.00014408,2]
[383247720,1756891846972,-300.0,0.00014408,2]
[383247722,1756891846982,-300.0,0.00014408,2]
[383247725,1756891846991,-646.0,0.0001441,2]
[383247727,1756891846999,-500.0,0.00014473,2]
[383247729,1756891847009,-579.69178809,0.00014473,2]
[383247731,1756891847018,-500.0,0.00014473,2]
[383247733,1756891847028,-500.0,0.00014473,2]
[383247735,1756891847038,-500.0,0.00014473,2]
[383247737,1756891847047,-500.0,0.00014473,2]
[383247739,1756891847059,-500.0,0.00014473,2]
[383247741,1756891847068,-501.6917532,0.00014473,2]
[383247743,1756891847077,-500.0,0.00014473,2]
[383247744,1756891847087,-500.0,0.00014473,2]
[383247745,1756891847097,-500.0,0.00014473,2]
[383247746,1756891847107,-500.0,0.00014473,2]
[383247747,1756891847115,-500.0,0.00014473,2]
[383247748,1756891847124,-500.0,0.00014473,2]
[383247749,1756891847133,-500.0,0.00014473,2]
[383247750,1756891847142,-500.0,0.00014473,2]
[383247751,1756891847151,-527.45466761,0.00014473,2]
[383247753,1756891847161,-500.0,0.00014473,2]
[383247755,1756891847170,-500.0,0.00014473,2]
[383247756,1756891847179,-500.0,0.00014473,2]
[383247758,1756891847188,-500.0,0.00014473,2]
[383247760,1756891847197,-500.0,0.00014473,2]
[383247762,1756891847206,-500.0,0.00014473,2]
[383247764,1756891847215,-13071.91277911,0.000145,2]
[383247836,1756891847859,-480.0,0.00013698,2]
[383247838,1756891847869,-480.0,0.00013698,2]
[383247840,1756891847880,-622.17,0.00013972,2]
[383247842,1756891847889,-319.18959753,0.00013972,2]
[383247901,1756891851069,158.1,0.00012329,2]
[383247912,1756891861491,790.5,0.00012329,2]
[383247913,1756891866909,1052.42227253,0.00029718,60]
[383247914,1756891872454,226.81,0.00012329,2]
[383247915,1756891909944,185.216701,0.00025,30]
[383247916,1756891916023,185.216701,0.000144,7]
[383247917,1756891928942,-300.0,0.0001346,2]
[383247918,1756891935778,524.448168,0.00013057,2]
[383247919,1756891936091,321.92510355,0.00013287,2]
[383247920,1756891953280,-1492.63779879,0.00013461,2]
[383247921,1756891964034,-10000.01,0.00013461,2]
[383247922,1756891974011,-2762.09865246,0.00013461,2]
[383247923,1756891983247,300.0,0.00013497,2]
[383247924,1756892029649,4175.81269508,0.00013496,2]
[383247925,1756892029669,10000.01,0.00013496,2]
[383247926,1756892029689,10000.01,0.00013496,2]
[383247927,1756892029709,10000.01,0.00013496,2]
[383247928,1756892029733,10000.01,0.00013496,2]
[383247929,1756892029756,10000.01,0.00013496,2]
[383247930,1756892029777,10000.01,0.00013496,2]
[383247931,1756892029798,6048.92167277,0.00013496,2]
[383247932,1756892035268,414.0,0.00013461,2]
[383247933,1756892043080,300.0,0.00013497,2]
[383247934,1756892053126,835.330866,0.00013363,2]
[383247935,1756892062230,855.22511311,0.00013363,2]
[383247936,1756892071656,500.0,0.00013497,2]
[383247937,1756892071700,500.0,0.00013497,2]
[383247938,1756892072042,500.0,0.00013497,2]
[383247939,1756892072090,46.53234812,0.00013497,2]
[383247940,1756892072113,453.46765188,0.00013497,2]
[383247941,1756892072202,500.0,0.00013497,2]
[383247942,1756892072250,368.21072055,0.00013497,2]
[383247943,1756892072290,500.0,0.00013497,2]
[383247944,1756892072331,500.0,0.00013497,2]
[383247945,1756892072422,500.0,0.00013497,2]
[383247946,1756892072538,500.0,0.00013497,2]
[383247947,1756892072685,500.0,0.00013497,2]
[383247948,1756892072721,500.0,0.00013497,2]
[383247949,1756892075330,414.0,0.0001339,2]
[383247950,1756892079211,151.0,0.000134,2]
[383247951,1756892079677,151.0,0.00013,2]
[383247952,1756892079991,151.0,0.000125,2]
[383247953,1756892080364,151.0,0.00012,2]
[383247954,1756892080694,151.0,0.000115,2]
[383247955,1756892081003,151.0,0.00011,2]
[383247956,1756892088834,500.0,0.00013497,2]
[383247957,1756892088994,550.0,0.00013497,2]
[383247958,1756892096405,414.0,0.00013493,2]
[383247959,1756892102880,300.0,0.00013497,2]
[383247960,1756892141914,2330.46701335,0.00013422,2]
[383247964,1756892162742,263.86461422,0.00013497,2]
[383247965,1756892162772,36.13538578,0.00013497,2]
[383247966,1756892220931,788.73414167,0.00013422,2]
[383247967,1756892250982,9175.14047255,0.000134,2]
[383247968,1756892251003,10000.01,0.000134,2]
[383247969,1756892251023,10000.01,0.000134,2]
[383247970,1756892251043,10000.01,0.000134,2]
[383247971,1756892251216,10000.01,0.000134,2]
[383247972,1756892251241,10000.01,0.000134,2]
[383247973,1756892251266,1770.19801342,0.000134,2]
[383247974,1756892273899,2945.45155026,0.00013363,2]
[383247975,1756892275529,3732.4388217,0.00013422,2]
[383247976,1756892326408,1551.92161462,0.00012635,2]
[383247977,1756892326429,8448.07838538,0.00012635,2]
[383247979,1756892366060,499.0,0.000134,2]
[383247982,1756892374537,841.0952722,0.00012635,2]
[383247983,1756892383233,151.0,0.000134,2]
[383247984,1756892383808,60.83634242,0.000131,2]
[383247985,1756892383831,90.16365758,0.000131,2]
[383247986,1756892384022,151.0,0.000127,2]
[383247987,1756892384362,151.0,0.000124,2]
[383247988,1756892384712,151.0,0.000121,2]
[383247989,1756892406820,2039.15863669,0.00013422,2]
[383247990,1756892481190,525.82276112,0.00013422,2]
[383247992,1756892511698,177.590131,0.00025,30]
[383247993,1756892516648,177.590131,0.000144,7]
[383247996,1756892667134,1784.26380706,0.00013422,2]
[383247997,1756892669415,666.0,0.00012634,2]
[383248000,1756892741406,350.54850742,0.00013422,2]
[383248001,1756892828846,2780.2869894,0.00012735,2]
[383248002,1756893001610,233.69900494,0.00013422,2]
[383248013,1756893031780,-4410.20799884,0.00013498,2]
[383248014,1756893031792,-938.09,0.00013498,2]
[383248015,1756893031884,-4544.98788317,0.00013498,2]
[383248029,1756893037625,-104942.22013718,0.00013498,2]
[383248030,1756893037677,-1726.53539593,0.00013498,2]
[383248031,1756893037689,-10009.3064238,0.00013498,2]
[383248032,1756893037731,-243428.65216108,0.00013498,2]
[383248033,1756893037741,-414.0,0.00013523,2]
[383248034,1756893037750,-414.0,0.00013528,2]
[383248035,1756893037760,-414.0,0.00013553,2]
[383248036,1756893037769,-1176.0,0.00013592,2]
[383248037,1756893037778,-168.0,0.00013627,2]
[383248038,1756893037788,-1176.0,0.00013661,2]
[383248039,1756893037797,-3029.688934,0.00013673,2]
[383248040,1756893037807,-500.0,0.00013673,2]
[383248041,1756893037816,-500.0,0.00013673,2]
[383248042,1756893037826,-500.0,0.00013673,2]
[383248043,1756893037835,-500.0,0.00013673,2]
[383248044,1756893037844,-301.06769504,0.00013673,2]
[383248045,1756893037854,-500.0,0.00013673,2]
[383248046,1756893037863,-262.77935635,0.00013673,2]
[383248047,1756893037873,-500.0,0.00013673,2]
[383248048,1756893037883,-500.0,0.00013673,2]
[383248049,1756893037892,-500.76948217,0.00013673,2]
[383248050,1756893037901,-500.0,0.00013673,2]
[383248051,1756893037911,-404.11218575,0.00013673,2]
[383248052,1756893037920,-500.0,0.00013673,2]
[383248053,1756893037929,-500.0,0.00013673,2]
[383248054,1756893037939,-500.0,0.00013673,2]
[383248055,1756893037949,-500.0,0.00013673,2]
[383248056,1756893037959,-502.84724117,0.00013673,2]
[383248057,1756893037968,-480.0,0.00013698,2]
[383248058,1756893037977,-480.0,0.00013698,2]
[383248059,1756893037986,-480.0,0.00013698,2]
[383248060,1756893037996,-480.0,0.00013698,2]
[383248061,1756893038006,-480.0,0.00013698,2]
[383248062,1756893038015,-365.76220789,0.00013698,2]
[383248063,1756893038024,-180.0,0.00013698,2]
[383248064,1756893038034,-480.0,0.00013698,2]
[383248065,1756893038043,-480.0,0.00013698,2]
[383248066,1756893038053,-480.0,0.00013698,2]
[383248067,1756893038062,-480.0,0.00013698,2]
[383248068,1756893038071,-343.86307844,0.00013698,2]
[383248069,1756893038080,-481.28103318,0.00013698,2]
[383248070,1756893038090,-480.0,0.00013698,2]
[383248071,1756893038099,-480.0,0.00013698,2]
[383248072,1756893038108,-480.0,0.00013698,2]
[383248073,1756893038118,-480.0,0.00013698,2]
[383248074,1756893038127,-480.0,0.00013698,2]
[383248075,1756893038138,-480.0,0.00013698,2]
[383248076,1756893038148,-289.3796986,0.00013698,2]
[383248077,1756893038157,-480.0,0.00013698,2]
[383248078,1756893038166,-480.0,0.00013698,2]
[383248079,1756893038175,-480.0,0.00013698,2]
[383248080,1756893038185,-480.0,0.00013698,2]
[383248081,1756893038194,-480.0,0.00013698,2]
[383248082,1756893038204,-480.0,0.00013698,2]
[383248083,1756893038213,-480.0,0.00013698,2]
[383248084,1756893038222,-480.0,0.00013698,2]
[383248085,1756893038231,-480.0,0.00013698,2]
[383248086,1756893038241,-480.0,0.00013698,2]
[383248087,1756893038250,-481.69628703,0.00013698,2]
[383248088,1756893038260,-480.0,0.00013698,2]
[383248089,1756893038269,-481.36204137,0.00013698,2]
[383248090,1756893038279,-480.0,0.00013698,2]
[383248091,1756893038288,-481.0005297,0.00013698,2]
[383248092,1756893038297,-481.54056564,0.00013698,2]
[383248093,1756893038307,-480.0,0.00013698,2]
[383248094,1756893038316,-480.0,0.00013698,2]
[383248095,1756893038325,-480.0,0.00013698,2]
[383248096,1756893038335,-480.0,0.00013698,2]
[383248097,1756893038344,-480.0,0.00013698,2]
[383248098,1756893038353,-480.0,0.00013698,2]
[383248099,1756893038363,-480.0,0.00013698,2]
[383248100,1756893038372,-480.0,0.00013698,2]
[383248101,1756893038382,-480.0,0.00013698,2]
[383248102,1756893038391,-480.0,0.00013698,2]
[383248103,1756893038400,-480.0,0.00013698,2]
[383248104,1756893038409,-480.0,0.00013698,2]
[383248105,1756893038419,-480.0,0.00013698,2]
[383248106,1756893038436,-480.0,0.00013698,2]
[383248107,1756893038461,-480.0,0.00013698,2]
[383248108,1756893038471,-480.0,0.00013698,2]
[383248109,1756893038480,-480.0,0.00013698,2]
[383248110,1756893038491,-480.0,0.00013698,2]
[383248111,1756893038500,-215.09458927,0.00013698,2]
[383248112,1756893038510,-480.0,0.00013698,2]
[383248113,1756893038521,-480.0,0.00013698,2]
[383248114,1756893038531,-151.0,0.00013698,2]
[383248115,1756893038542,-151.0,0.00013698,2]
[383248116,1756893038552,-480.0,0.00013698,2]
[383248117,1756893038564,-480.0,0.00013698,2]
[383248118,1756893038578,-480.0,0.00013698,2]
[383248119,1756893038587,-244.58986543,0.00013698,2]
[383248120,1756893038596,-482.56005113,0.00013698,2]
[383248121,1756893038607,-480.0,0.00013698,2]
[383248122,1756893038618,-151.0,0.00013698,2]
[383248123,1756893038629,-151.0,0.00013698,2]
[383248124,1756893038639,-480.0,0.00013698,2]
[383248125,1756893038652,-480.0,0.00013698,2]
[383248126,1756893038662,-480.0,0.00013698,2]
[383248127,1756893038671,-480.0,0.00013698,2]
[383248128,1756893038681,-151.0,0.00013698,2]
[383248129,1756893038691,-490.74440769,0.00013698,2]
[383248130,1756893038700,-289.474385,0.00013698,2]
[383248131,1756893038711,-151.0,0.00013698,2]
[383248132,1756893038722,-480.0,0.00013698,2]
[383248133,1756893038733,-481.82560852,0.00013698,2]
[383248134,1756893038743,-491.67115487,0.00013698,2]
[383248135,1756893038753,-484.99851074,0.00013698,2]
[383248136,1756893038765,-151.0,0.00013698,2]
[383248137,1756893038774,-480.0,0.00013698,2]
[383248138,1756893038784,-480.0,0.00013698,2]
[383248139,1756893038794,-151.0,0.00013698,2]
[383248140,1756893038803,-480.0,0.00013698,2]
[383248141,1756893038810,-151.0,0.00013698,2]
[383248142,1756893038819,-480.0,0.00013698,2]
[383248143,1756893038827,-480.0,0.00013698,2]
[383248144,1756893038836,-480.0,0.00013698,2]
[383248145,1756893038845,-480.0,0.00013698,2]
[383248146,1756893038855,-480.0,0.00013698,2]
[383248147,1756893038865,-480.0,0.00013698,2]
[383248148,1756893038874,-480.0,0.00013698,2]
[383248149,1756893038884,-480.0,0.00013698,2]
[383248150,1756893038894,-480.0,0.00013698,2]
[383248151,1756893038903,-480.0,0.00013698,2]
[383248152,1756893038913,-480.0,0.00013698,2]
[383248153,1756893038923,-151.0,0.00013698,2]
[383248154,1756893038932,-151.0,0.00013698,2]
[383248155,1756893038942,-480.0,0.00013698,2]
[383248156,1756893038951,-151.0,0.00013698,2]
[383248157,1756893038961,-480.0,0.00013698,2]
[383248158,1756893038971,-480.0,0.00013698,2]
[383248159,1756893038981,-480.0,0.00013698,2]
[383248160,1756893038991,-480.0,0.00013698,2]
[383248161,1756893039000,-151.0,0.00013698,2]
[383248162,1756893039010,-151.0,0.00013698,2]
[383248163,1756893039019,-481.85405021,0.00013698,2]
[383248164,1756893039028,-480.0,0.00013698,2]
[383248165,1756893039038,-480.0,0.00013698,2]
[383248166,1756893039048,-480.0,0.00013698,2]
[383248167,1756893039057,-481.0186502,0.00013698,2]
[383248168,1756893039067,-481.58303436,0.00013698,2]
[383248169,1756893039078,-483.5667918,0.00013698,2]
[383248170,1756893039088,-481.58661557,0.00013698,2]
[383248171,1756893039097,-480.0,0.00013698,2]
[383248172,1756893039107,-480.0,0.00013698,2]
[383248173,1756893039117,-527.49,0.00013698,2]
[383248174,1756893039127,-527.49,0.00013698,2]
[383248175,1756893039136,-480.0,0.00013698,2]
[383248176,1756893039145,-527.49,0.00013698,2]
[383248177,1756893039155,-527.49,0.00013698,2]
[383248178,1756893039164,-527.49,0.00013698,2]
[383248179,1756893039173,-527.49,0.00013698,2]
[383248180,1756893039183,-527.49,0.00013698,2]
[383248181,1756893039192,-527.49,0.00013698,2]
[383248182,1756893039201,-527.49,0.00013698,2]
[383248183,1756893039211,-527.49,0.00013698,2]
[383248184,1756893039220,-527.49,0.00013698,2]
[383248185,1756893039230,-527.49,0.00013698,2]
[383248187,1756893039239,-527.49,0.00013698,2]
[383248188,1756893039250,-527.49,0.00013698,2]
[383248189,1756893039259,-527.49,0.00013698,2]
[383248190,1756893039268,-480.0,0.00013698,2]
[383248191,1756893039277,-527.49,0.00013698,2]
[383248192,1756893039286,-527.49,0.00013698,2]
[383248193,1756893039296,-480.0,0.00013698,2]
[383248194,1756893039305,-527.49,0.00013698,2]
[383248195,1756893039315,-527.49,0.00013698,2]
[383248196,1756893039325,-527.49,0.00013698,2]
[383248198,1756893039335,-527.49,0.00013698,2]
[383248199,1756893039344,-527.49,0.00013698,2]
[383248200,1756893039353,-527.49,0.00013698,2]
[383248201,1756893039362,-527.58277156,0.00013698,2]
[383248202,1756893039371,-480.0,0.00013698,2]
[383248203,1756893039380,-151.0,0.00013698,2]
[383248205,1756893039390,-151.0,0.00013698,2]
[383248206,1756893039399,-531.00287581,0.00013698,2]
[383248207,1756893039409,-480.0,0.00013698,2]
[383248208,1756893039418,-480.0,0.00013698,2]
[383248209,1756893039427,-481.56346662,0.00013698,2]
[383248210,1756893039436,-480.0,0.00013698,2]
[383248211,1756893039446,-151.0,0.00013698,2]
[383248212,1756893039456,-224.119796,0.00013698,2]
[383248213,1756893039465,-201.43408627,0.00013698,2]
[383248214,1756893039474,-224.119796,0.00013698,2]
[383248216,1756893039484,-480.0,0.00013698,2]
[383248218,1756893039494,-224.119796,0.00013698,2]
[383248219,1756893039503,-480.0,0.00013698,2]
[383248220,1756893039515,-480.0,0.00013698,2]
[383248222,1756893039525,-224.119796,0.00013698,2]
[383248224,1756893039534,-480.0,0.00013698,2]
[383248226,1756893039544,-151.0,0.00013698,2]
[383248228,1756893039554,-480.0,0.00013698,2]
[383248231,1756893039563,-480.0,0.00013698,2]
[383248233,1756893039578,-480.0,0.00013698,2]
[383248235,1756893039589,-480.0,0.00013698,2]
[383248237,1756893039598,-480.0,0.00013698,2]
[383248239,1756893039608,-480.0,0.00013698,2]
[383248240,1756893039618,-480.0,0.00013698,2]
[383248243,1756893039628,-480.0,0.00013698,2]
[383248245,1756893039637,-480.0,0.00013698,2]
[383248246,1756893039647,-480.0,0.00013698,2]
[383248248,1756893039656,-480.0,0.00013698,2]
[383248250,1756893039665,-480.0,0.00013698,2]
[383248253,1756893039675,-480.0,0.00013698,2]
[383248255,1756893039684,-481.52125664,0.00013698,2]
[383248257,1756893039694,-480.0,0.00013698,2]
[383248259,1756893039703,-481.69264169,0.00013698,2]
[383248261,1756893039714,-481.2498241,0.00013698,2]
[383248263,1756893039723,-475.17893973,0.00013698,2]
[383248265,1756893039732,-480.0,0.00013698,2]
[383248266,1756893039741,-480.0,0.00013698,2]
[383248269,1756893039751,-480.0,0.00013698,2]
[383248271,1756893039760,-480.0,0.00013698,2]
[383248273,1756893039770,-480.0,0.00013698,2]
[383248275,1756893039779,-480.0,0.00013698,2]
[383248277,1756893039788,-480.0,0.00013698,2]
[383248279,1756893039798,-480.0,0.00013698,2]
[383248281,1756893039807,-480.0,0.00013698,2]
[383248283,1756893039816,-480.0,0.00013698,2]
[383248285,1756893039825,-480.0,0.00013698,2]
[383248287,1756893039835,-480.0,0.00013698,2]
[383248289,1756893039844,-480.0,0.00013698,2]
[383248291,1756893039853,-153.871515,0.00013698,2]
[383248293,1756893039863,-151.0,0.00013698,2]
[383248295,1756893039878,-151.0,0.00013698,2]
[383248297,1756893039888,-480.0,0.00013698,2]
[383248299,1756893039899,-480.0,0.00013698,2]
[383248301,1756893039909,-480.0,0.00013698,2]
[383248303,1756893039919,-480.0,0.00013698,2]
[383248305,1756893039928,-480.0,0.00013698,2]
[383248307,1756893039939,-480.0,0.00013698,2]
[383248309,1756893039948,-480.0,0.00013698,2]
[383248311,1756893039958,-484.36906535,0.00013698,2]
[383248313,1756893039968,-480.0,0.00013698,2]
[383248315,1756893039977,-480.0,0.00013698,2]
[383248317,1756893039987,-151.0,0.00013698,2]
[383248319,1756893039996,-151.0,0.00013698,2]
[383248321,1756893040005,-151.0,0.00013698,2]
[383248323,1756893040015,-151.0,0.00013698,2]
[383248324,1756893040024,-151.0,0.00013698,2]
[383248326,1756893040033,-168.824,0.00013698,2]
[383248328,1756893040043,-151.0,0.00013698,2]